Workbook

Sheet GLCustomSalesbyBrandBySal
A1: Sales Rep | B1: January 2022 | C1: February 2022 | D1: March 2022 | E1: Total
A2: Ziwi
A3: Emily Hibberd | B3: $152,595.62 | C3: $153,963.28 | D3: $162,883.56 | E3: =SUM(B3:D3) -> $469,442.46
A4: Esther Wong | B4: $163,455.48 | C4: $153,148.28 | D4: $147,330.24 | E4: $463,934.00
A5: Amber Frankland | B5: $29,491.27 | C5: $15,740.28 | D5: $17,590.33 | E5: $62,821.88
A6: Chung Law | B6: $113,258.30 | C6: $58,276.87 | D6: $112,147.08 | E6: $283,682.25
A7: Grant Leclere | B7: $48,595.11 | C7: $23,690.82 | D7: $60,160.93 | E7: $132,446.86
A8: Kirsten Sullivan | B8: $226,668.18 | C8: $236,484.71 | D8: $262,747.66 | E8: $725,900.55
A9: Lea O'Callaghan | B9: $224,407.22 | C9: $218,268.12 | D9: $217,165.27 | E9: $659,840.61
A10: Tracie Haywood-Cruddas | B10: $253,532.11 | C10: $217,237.57 | D10: $256,570.59 | E10: $727,340.27
A11: Tracy Whiter | B11: $18.80 | C11: $0.00 | D11: $0.00 | E11: $18.80
A12: Alan Keyes | B12: $1,112.48 | C12: $511.56 | D12: $583.91 | E12: $2,207.95
A13: Chris Henderson | B13: $191.00 | C13: $0.00 | D13: $0.00 | E13: $191.00
A14: Total - Ziwi | B14: =SUM(B3:B13) -> $1,213,325.57 | C14: =SUM(C3:C13) -> $1,077,321.49 | D14: =SUM(D3:D13) -> $1,237,179.57 | E14: =SUM(E3:E13) -> $3,527,826.63
A15: ONE
A16: Emily Hibberd | B16: $182.70 | C16: $151.20 | D16: $31.50 | E16: =SUM(B16:D16) -> $365.40
A17: Esther Wong | B17: $368.49 | C17: $21.00 | D17: $0.00 | E17: $389.49
A18: Amber Frankland | B18: $31.50 | C18: $47.25 | D18: $168.00 | E18: $246.75
A19: Kirsten Sullivan | B19: $0.00 | C19: $5.25 | D19: $189.00 | E19: $194.25
A20: Lea O'Callaghan | B20: $0.00 | C20: $31.50 | D20: $94.50 | E20: $126.00
A21: Tracie Haywood-Cruddas | B21: $31.50 | C21: $104.01 | D21: $229.02 | E21: $364.53
A22: Tracy Whiter | B22: $0.00 | C22: $94.50 | D22: $0.00 | E22: $94.50
A23: Total - ONE | B23: =SUM(B16:B22) -> $614.19 | C23: =SUM(C16:C22) -> $454.71 | D23: =SUM(D16:D22) -> $712.02 | E23: =SUM(E16:E22) -> $1,780.92
A24: Bell & Bone
A25: Emily Hibberd | B25: $1,964.49 | C25: $1,671.46 | D25: $1,159.53 | E25: =SUM(B25:D25) -> $4,795.48
A26: Esther Wong | B26: $3,408.15 | C26: $3,039.86 | D26: $2,681.29 | E26: $9,129.30
A27: Amber Frankland | B27: $59.70 | C27: $714.37 | D27: $296.73 | E27: $1,070.80
A28: Chung Law | B28: $893.25 | C28: $1,544.48 | D28: $1,387.83 | E28: $3,825.56
A29: Grant Leclere | B29: $1,434.80 | C29: $1,131.60 | D29: $6,370.45 | E29: $8,936.85
A30: Kirsten Sullivan | B30: $1,314.83 | C30: $1,208.90 | D30: $1,084.71 | E30: $3,608.44
A31: Lea O'Callaghan | B31: $2,259.70 | C31: $2,542.21 | D31: $2,520.14 | E31: $7,322.05
A32: Tracie Haywood-Cruddas | B32: $4,381.54 | C32: $4,059.67 | D32: $4,945.91 | E32: $13,387.12
A33: Tracy Whiter | B33: $0.00 | C33: $1,196.41 | D33: $197.40 | E33: $1,393.81
A34: Total - Bell & Bone | B34: =SUM(B25:B33) -> $15,716.46 | C34: =SUM(C25:C33) -> $17,108.96 | D34: =SUM(D25:D33) -> $20,643.99 | E34: =SUM(E25:E33) -> $53,469.41
A35: Vetalogica
A36: Emily Hibberd | B36: $222.92 | C36: $445.17 | D36: $329.76 | E36: =SUM(B36:D36) -> $997.85
A37: Esther Wong | B37: $939.50 | C37: $568.71 | D37: $486.46 | E37: $1,994.67
A38: Amber Frankland | B38: $361.63 | C38: $0.00 | D38: $147.73 | E38: $509.36
A39: Chung Law | B39: $8,895.70 | C39: $10,860.38 | D39: $14,351.85 | E39: $34,107.93
A40: Grant Leclere | B40: $0.00 | C40: $319.58 | D40: $11,041.90 | E40: $11,361.48
A41: Kirsten Sullivan | B41: $12,913.37 | C41: $16,225.57 | D41: $11,838.94 | E41: $40,977.88
A42: Lea O'Callaghan | B42: $12,976.94 | C42: $16,819.49 | D42: $16,907.74 | E42: $46,704.17
A43: Tracie Haywood-Cruddas | B43: $15,441.37 | C43: $5,542.74 | D43: $11,252.24 | E43: $32,236.35
A44: Tracy Whiter | B44: $93.31 | C44: $870.89 | D44: $451.60 | E44: $1,415.80
A45: Total - Vetalogica | B45: =SUM(B36:B44) -> $51,844.74 | C45: =SUM(C36:C44) -> $51,652.53 | D45: =SUM(D36:D44) -> $66,808.22 | E45: =SUM(E36:E44) -> $170,305.49
A46: Hemp Pet
A47: Emily Hibberd | B47: $1,385.96 | C47: $1,278.16 | D47: $1,043.10 | E47: =SUM(B47:D47) -> $3,707.22
A48: Esther Wong | B48: $1,689.25 | C48: $971.20 | D48: $1,448.58 | E48: $4,109.03
A49: Amber Frankland | B49: $2,701.32 | C49: $4,594.77 | D49: $5,149.84 | E49: $12,445.93
A50: Chung Law | B50: $320.82 | C50: $754.60 | D50: $207.38 | E50: $1,282.80
A51: Grant Leclere | B51: $667.88 | C51: $480.88 | D51: $2,628.35 | E51: $3,777.11
A52: Kirsten Sullivan | B52: $1,257.96 | C52: $1,483.66 | D52: $2,521.34 | E52: $5,262.96
A53: Lea O'Callaghan | B53: $2,052.36 | C53: $1,889.66 | D53: $3,789.79 | E53: $7,731.81
A54: Tracie Haywood-Cruddas | B54: $4,319.66 | C54: $3,022.83 | D54: $5,596.27 | E54: $12,938.76
A55: Tracy Whiter | B55: $9,494.58 | C55: $3,287.34 | D55: $93.60 | E55: $12,875.52
A56: Alan Keyes | B56: $57.00 | C56: $0.00 | D56: $189.28 | E56: $246.28
A57: Total - Hemp Pet | B57: =SUM(B47:B56) -> $23,946.79 | C57: =SUM(C47:C56) -> $17,763.10 | D57: =SUM(D47:D56) -> $22,667.53 | E57: =SUM(E47:E56) -> $64,377.42
A58: WAG
A59: Emily Hibberd | B59: $5,531.80 | C59: $3,367.53 | D59: $3,920.41 | E59: =SUM(B59:D59) -> $12,819.74
A60: Esther Wong | B60: $6,572.70 | C60: $5,740.29 | D60: $5,263.12 | E60: $17,576.11
A61: Amber Frankland | B61: $2,785.23 | C61: $1,542.69 | D61: $4,155.41 | E61: $8,483.33
A62: Chung Law | B62: $5,687.68 | C62: $6,121.17 | D62: $2,855.84 | E62: $14,664.69
A63: Grant Leclere | B63: $2,539.97 | C63: $2,506.87 | D63: $13,205.49 | E63: $18,252.33
A64: Kirsten Sullivan | B64: $4,423.00 | C64: $2,185.03 | D64: $3,138.14 | E64: $9,746.17
A65: Lea O'Callaghan | B65: $3,982.53 | C65: $5,591.44 | D65: $7,121.37 | E65: $16,695.34
A66: Tracie Haywood-Cruddas | B66: $3,056.12 | C66: $4,136.04 | D66: $2,597.08 | E66: $9,789.24
A67: Tracy Whiter | B67: $2,194.18 | C67: $2,528.65 | D67: $772.15 | E67: $5,494.98
A68: Alan Keyes | B68: $0.00 | C68: $11.22 | D68: $0.00 | E68: $11.22
A69: Total - WAG | B69: =SUM(B59:B68) -> $36,773.21 | C69: =SUM(C59:C68) -> $33,730.93 | D69: =SUM(D59:D68) -> $43,029.01 | E69: =SUM(E59:E68) -> $113,533.15
A70: Healthy Everyday Pets
A71: Emily Hibberd | B71: $2,748.72 | C71: $6,077.16 | D71: $4,414.02 | E71: =SUM(B71:D71) -> $13,239.90
A72: Esther Wong | B72: $530.49 | C72: $2,461.88 | D72: $2,402.11 | E72: $5,394.48
A73: Amber Frankland | B73: $11.78 | C73: $112.67 | D73: $28.17 | E73: $152.62
A74: Chung Law | B74: $5,529.96 | C74: $4,285.86 | D74: $5,290.63 | E74: $15,106.45
A75: Grant Leclere | B75: $147.22 | C75: $2,512.67 | D75: $24,731.16 | E75: $27,391.05
A76: Kirsten Sullivan | B76: $3,289.52 | C76: $3,154.79 | D76: $5,380.56 | E76: $11,824.87
A77: Lea O'Callaghan | B77: $2,323.45 | C77: $2,175.36 | D77: $11,552.55 | E77: $16,051.36
A78: Tracie Haywood-Cruddas | B78: $3,473.86 | C78: $2,174.68 | D78: $2,374.14 | E78: $8,022.68
A79: Tracy Whiter | B79: $963.25 | C79: $2,225.46 | D79: $1,468.48 | E79: $4,657.19
A80: Total - Healthy Everyday Pets | B80: =SUM(B71:B79) -> $19,018.25 | C80: =SUM(C71:C79) -> $25,180.53 | D80: =SUM(D71:D79) -> $57,641.82 | E80: =SUM(E71:E79) -> $101,840.60
A81: Beasty
A82: Emily Hibberd | B82: $393.90 | C82: $154.20 | D82: $126.00 | E82: =SUM(B82:D82) -> $674.10
A83: Esther Wong | B83: $348.30 | C83: $151.80 | D83: $168.00 | E83: $668.10
A84: Chung Law | B84: $2,898.96 | C84: $1,843.50 | D84: $0.00 | E84: $4,742.46
A85: Grant Leclere | B85: $52.50 | C85: $0.00 | D85: $0.00 | E85: $52.50
A86: Kirsten Sullivan | B86: $360.90 | C86: $327.00 | D86: $0.00 | E86: $687.90
A87: Lea O'Callaghan | B87: $1,030.50 | C87: $447.90 | D87: $42.00 | E87: $1,520.40
A88: Tracie Haywood-Cruddas | B88: $371.34 | C88: $249.00 | D88: $115.50 | E88: $735.84
A89: Tracy Whiter | B89: $156.60 | C89: $101.70 | D89: $0.00 | E89: $258.30
A90: Total - Beasty | B90: =SUM(B82:B89) -> $5,613.00 | C90: =SUM(C82:C89) -> $3,275.10 | D90: =SUM(D82:D89) -> $451.50 | E90: =SUM(E82:E89) -> $9,339.60
A91: Feed for Thought
A92: Esther Wong | B92: $0.00 | C92: $0.00 | D92: $566.00 | E92: =SUM(B92:D92) -> $566.00
A93: Kirsten Sullivan | B93: $0.00 | C93: $0.00 | D93: $20.00 | E93: =SUM(B93:D93) -> $20.00
A94: Total - Feed for Thought | B94: =SUM(B92:B93) -> $0.00 | C94: =SUM(C92:C93) -> $0.00 | D94: =SUM(D92:D93) -> $586.00 | E94: =SUM(E92:E93) -> $586.00
